fUSD/lending_fUSD_20260608
["ID","MTS","AMOUNT","RATE_DAILY","PERIOD"]
[424411819,1780852232000,-500.0,0.00013698,2]
[424411840,1780852232000,-575.17,0.00013698,2]
[424411820,1780852232000,-500.0,0.00013698,2]
[424411811,1780852232000,-235.29408027,0.00013698,2]
[424411817,1780852232000,-500.0,0.00013698,2]
[424411804,1780852232000,-150.0,0.00013697,2]
[424411803,1780852232000,-166.67,0.00013651,2]
[424411805,1780852232000,-500.0,0.00013698,2]
[424411809,1780852232000,-500.0,0.00013698,2]
[424411808,1780852232000,-500.0,0.00013698,2]
[424411806,1780852232000,-500.0,0.00013698,2]
[424411807,1780852232000,-500.0,0.00013698,2]
[424411818,1780852232000,-219.84,0.00013698,2]
[424411810,1780852232000,-264.70591973,0.00013698,2]
[424411813,1780852232000,-500.0,0.00013698,2]
[424411821,1780852232000,-500.0,0.00013698,2]
[424411822,1780852232000,-500.0,0.00013698,2]
[424411823,1780852232000,-500.0,0.00013698,2]
[424411814,1780852232000,-81.621662,0.00013698,2]
[424411812,1780852232000,-500.0,0.00013698,2]
[424411816,1780852232000,-418.378338,0.00013698,2]
[424411838,1780852232000,-575.17,0.00013698,2]
[424411843,1780852232000,-204.39646159,0.00013698,2]
[424411830,1780852232000,-373.2881101,0.00013698,2]
[424411844,1780852232000,-370.77353841,0.00013698,2]
[424411865,1780852232000,-200.0,0.00013699,2]
[424411867,1780852232000,-31.36351365,0.00013829,2]
[424411869,1780852232000,-166.66,0.00013973,2]
[424411868,1780852232000,-166.66,0.00013836,2]
[424411866,1780852232000,-543.80648635,0.00013829,2]
[424411870,1780852232000,-250.0,0.00014,2]
[424411871,1780852232000,-166.66,0.0001411,2]
[424411876,1780852232000,-382.35508248,0.00014226,2]
[424411875,1780852232000,-500.0,0.00014226,2]
[424411872,1780852232000,-500.0,0.00014226,2]
[424411874,1780852232000,-139.13584439,0.00014226,2]
[424411873,1780852232000,-360.86415561,0.00014226,2]
[424411878,1780852232000,-236.35740895,0.00014226,2]
[424411877,1780852232000,-117.64491752,0.00014226,2]
[424411880,1780852232000,-8.48093207,0.00014226,2]
[424411879,1780852232000,-263.64259105,0.00014226,2]
[424411842,1780852232000,-267.44958488,0.00013698,2]
[424411858,1780852232000,-500.0,0.00013698,2]
[424411859,1780852232000,-500.0,0.00013698,2]
[424411832,1780852232000,-500.0,0.00013698,2]
[424411855,1780852232000,-500.0,0.00013698,2]
[424411856,1780852232000,-500.0,0.00013698,2]
[424411846,1780852232000,-552.29006241,0.00013698,2]
[424411845,1780852232000,-22.87993759,0.00013698,2]
[424411847,1780852232000,-575.17,0.00013698,2]
[424411848,1780852232000,-575.17,0.00013698,2]
[424411851,1780852232000,-575.17,0.00013698,2]
[424411850,1780852232000,-575.17,0.00013698,2]
[424411861,1780852232000,-198.48,0.00013698,2]
[424411849,1780852232000,-575.17,0.00013698,2]
[424411864,1780852232000,-166.66,0.00013699,2]
[424411852,1780852232000,-575.17,0.00013698,2]
[424411862,1780852232000,-500.0,0.00013699,2]
[424411853,1780852232000,-575.17,0.00013698,2]
[424411854,1780852232000,-575.17,0.00013698,2]
[424411863,1780852232000,-958.65,0.00013699,2]
[424411857,1780852232000,-500.0,0.00013698,2]
[424411860,1780852232000,-216.19407038,0.00013698,2]
[424411881,1780852233000,151.0,0.00030137,120]
[424411895,1780852237000,-146.75670425,0.000145,5]
[424411889,1780852237000,-166.66,0.00014247,2]
[424411892,1780852237000,-166.66,0.00014384,2]
[424411890,1780852237000,-350.0,0.00014272,3]
[424411888,1780852237000,-546.63129575,0.00014226,2]
[424411894,1780852237000,-169.2,0.000145,5]
[424411891,1780852237000,-350.0,0.00014345,2]
[424411897,1780852237000,-169.2,0.000145,5]
[424411893,1780852237000,-350.0,0.00014469,2]
[424411906,1780852237000,-350.0,0.00014562,2]
[424411905,1780852237000,-575.17,0.00014543,2]
[424411901,1780852237000,-21.52989705,0.000145,5]
[424411899,1780852237000,-169.0,0.000145,5]
[424411902,1780852237000,-147.47010295,0.000145,5]
[424411904,1780852237000,-300.0,0.000145,5]
[424411898,1780852237000,-169.0,0.000145,5]
[424411903,1780852237000,-169.0,0.000145,5]
[424411900,1780852237000,-169.0,0.000145,5]
[424411896,1780852237000,-22.44329575,0.000145,5]
[424411908,1780852238000,-790.92214884,0.000146,2]
[424411907,1780852238000,-188.28931876,0.000146,2]
[424411913,1780852239000,-1478.07385116,0.000146,2]
[424411914,1780852239000,-175.5,0.000146,2]
[424411916,1780852239000,-350.0,0.00014643,2]
[424411915,1780852239000,-600.0,0.000146,5]
[424411923,1780852240000,-884.84964362,0.000147,2]
[424411917,1780852240000,-381.85447731,0.000147,2]
[424411919,1780852240000,-3317.8658,0.000147,2]
[424411921,1780852240000,-495.45621704,0.000147,2]
[424411920,1780852240000,-644.29422502,0.000147,2]
[424411918,1780852240000,-4178.2982,0.000147,2]
[424411922,1780852240000,-475.39991432,0.000147,2]
[424411928,1780852240000,-636.26,0.000147,2]
[424411927,1780852240000,-909.09,0.000147,2]
[424411926,1780852240000,-2494.93304004,0.000147,2]
[424411925,1780852240000,-245.15035638,0.000147,2]
[424411929,1780852240000,-2294.81304654,0.000147,2]
[424411931,1780852240000,-5698.25009869,0.0001472,2]
[424411924,1780852240000,-1000.0,0.000147,5]
[424411930,1780852240000,-6819.0192,0.000147,2]
[424411989,1780852242000,-1479.55851776,0.0001472,2]
[424411990,1780852242000,-1655.53851729,0.0001472,2]
[424411992,1780852242000,-995.96660006,0.0001472,2]
[424411988,1780852242000,-7385.82672798,0.0001472,2]
[424411995,1780852246000,-2255.80620229,0.00014147,2]
[424411996,1780852246000,-2848.43659772,0.0001472,2]
[424412090,1780852249000,151.0,0.00030137,120]
[424412091,1780852269000,168.0,0.00030137,120]
[424412095,1780852549000,180.0,0.00030136,120]
[424412096,1780852604000,1000.0,0.00029452,120]
[424412097,1780852842000,195.61,0.00029452,120]
[424412100,1780852955000,151.0,0.0003,120]
[424412101,1780852980000,616.0,0.000301,120]
[424412109,1780853016000,-250.37775,0.00013488,2]
[424412108,1780853016000,-152.0,0.00011717,7]
[424412110,1780853016000,-3461.39,0.00013556,2]
[424412112,1780853016000,-993.9969,0.00013598,2]
[424412111,1780853016000,-150.51,0.00013567,2]
[424412116,1780853016000,-200.0,0.0001366,2]
[424412115,1780853016000,-201.84832656,0.00013629,2]
[424412114,1780853016000,-18151.47,0.0001362,2]
[424412119,1780853016000,-150.0,0.00013744,2]
[424412118,1780853016000,-200.0,0.00013699,2]
[424412125,1780853016000,-546.18,0.00013953,2]
[424412124,1780853016000,-1246.78,0.00013861,2]
[424412122,1780853016000,-215.83393831,0.00013767,2]
[424412113,1780853016000,-161.0,0.00013608,2]
[424412120,1780853016000,-175.5,0.00013744,2]
[424412121,1780853016000,-160.0,0.00013767,2]
[424412117,1780853016000,-166.66,0.00013699,2]
[424412123,1780853016000,-166.66,0.00013836,2]
[424412133,1780853017000,-166.66,0.00014384,2]
[424412131,1780853017000,-1246.78,0.00014208,2]
[424412129,1780853017000,-1815.196,0.00014121,2]
[424412130,1780853017000,-778.776,0.00014172,2]
[424412128,1780853017000,-166.66,0.0001411,2]
[424412126,1780853017000,-166.66,0.00013973,2]
[424412127,1780853017000,-250.0,0.00014,2]
[424412132,1780853017000,-166.66,0.00014247,2]
[424412139,1780853028000,150.0,0.0001398,2]
[424412141,1780853031000,162.0,0.0003,120]
[424412142,1780853041000,150.0,0.0001388,2]
[424412144,1780853092000,150.0,0.00014,2]
[424412145,1780853093000,1342.40108513,0.00014298,2]
[424412159,1780853274000,200.0,5e-05,120]
[424412160,1780853274000,200.0,5e-05,120]
[424412161,1780853275000,200.0,5e-05,120]
[424412162,1780853276000,200.0,5e-05,120]
[424412163,1780853277000,200.0,5e-05,120]
[424412164,1780853278000,200.0,5e-05,120]
[424412165,1780853279000,200.0,5e-05,120]
[424412166,1780853280000,200.0,5e-05,120]
[424412167,1780853282000,200.0,5e-05,120]
[424412168,1780853283000,200.0,5e-05,120]
[424412170,1780853285000,200.0,5e-05,120]
[424412169,1780853285000,200.0,5e-05,120]
[424412171,1780853287000,200.0,5e-05,120]
[424412172,1780853288000,200.0,5e-05,120]
[424412173,1780853289000,200.0,5e-05,120]
[424412174,1780853291000,200.0,5e-05,120]
[424412175,1780853292000,200.0,5e-05,120]
[424412176,1780853293000,200.0,5e-05,120]
[424412178,1780853296000,200.0,1.8e-06,2]
[424412177,1780853296000,200.0,5e-05,120]
[424412179,1780853297000,200.0,1.8e-06,2]
[424412180,1780853298000,200.0,1.8e-06,2]
[424412181,1780853299000,200.0,1.8e-06,2]
[424412182,1780853300000,200.0,1.8e-06,2]
[424412183,1780853301000,200.0,1.8e-06,2]
[424412184,1780853302000,200.0,1.8e-06,2]
[424412185,1780853303000,200.0,1.8e-06,2]
[424412186,1780853305000,200.0,1.8e-06,2]
[424412188,1780853307000,200.0,2e-06,2]
[424412187,1780853307000,168.96,1.8e-06,2]
[424412189,1780853308000,200.0,2e-06,2]
[424412190,1780853310000,200.0,2e-06,2]
[424412199,1780853431000,-151.0,0.0001241,2]
[424412200,1780853431000,-151.0,0.0001241,2]
[424412202,1780853431000,-151.0,0.0001241,2]
[424412203,1780853431000,-526.72,0.00013475,2]
[424412201,1780853431000,-151.0,0.0001241,2]
[424412205,1780853432000,-150.0,0.00013488,2]
[424412204,1780853432000,-150.0,0.00013488,2]
[424412207,1780853432000,-250.0,0.00013652,2]
[424412206,1780853432000,-748.06,0.00013584,2]
[424412210,1780853432000,-421.53624352,0.00013923,2]
[424412214,1780853432000,-150.0,0.00014237,2]
[424412209,1780853432000,-326.52375648,0.00013923,2]
[424412208,1780853432000,-150.0,0.00013737,2]
[424412213,1780853432000,-500.0,0.000142,5]
[424412211,1780853432000,-150.0,0.00013987,2]
[424412212,1780853432000,-200.0,0.000141,5]
[424412217,1780853432000,-248.06724531,0.00014298,2]
[424412216,1780853432000,-622.19380069,0.00014263,2]
[424412221,1780853432000,-387.87639745,0.000143,5]
[424412218,1780853432000,-1060.71257955,0.00014298,2]
[424412219,1780853432000,-291.82891571,0.00014298,2]
[424412215,1780853432000,-125.86619931,0.00014263,2]
[424412220,1780853432000,-110.49228281,0.000143,5]
[424412271,1780853438000,-500.0,0.00014414,2]
[424412267,1780853438000,-500.0,0.00014414,2]
[424412265,1780853438000,-500.0,0.00014414,2]
[424412261,1780853438000,-500.0,0.00014414,2]
[424412260,1780853438000,-500.0,0.00014414,2]
[424412259,1780853438000,-500.0,0.00014414,2]
[424412262,1780853438000,-156.93376559,0.00014414,2]
[424412269,1780853438000,-500.0,0.00014414,2]
[424412278,1780853438000,-500.0,0.00014414,2]
[424412263,1780853438000,-500.0,0.00014414,2]
[424412279,1780853438000,-500.0,0.00014414,2]
[424412285,1780853438000,-500.0,0.00014414,2]
[424412273,1780853438000,-500.0,0.00014414,2]
[424412280,1780853438000,-500.0,0.00014414,2]
[424412275,1780853438000,-500.0,0.00014414,2]
[424412286,1780853438000,-1500000.0,0.00014415,2]
[424412283,1780853438000,-500.0,0.00014414,2]
[424412282,1780853438000,-500.0,0.00014414,2]
[424412284,1780853438000,-500.0,0.00014414,2]
[424412281,1780853438000,-500.0,0.00014414,2]
[424412257,1780853438000,-500.0,0.00014414,2]
[424412287,1780853438000,-150.0,0.00014487,2]
[424412289,1780853438000,-2692.25,0.00014493,2]
[424412277,1780853438000,-500.0,0.00014414,2]
[424412258,1780853438000,-500.0,0.00014414,2]
[424412247,1780853438000,-508.88774667,0.00014414,2]
[424412252,1780853438000,-500.0,0.00014414,2]
[424412298,1780853438000,-371.9619,0.000145,2]
[424412231,1780853438000,-160.0,0.00014312,2]
[424412234,1780853438000,-197.25337805,0.00014315,2]
[424412230,1780853438000,-301.63131974,0.000143,5]
[424412235,1780853438000,-302.74662195,0.000144,5]
[424412232,1780853438000,-215.83393831,0.00014312,2]
[424412233,1780853438000,-152.74662195,0.00014315,2]
[424412237,1780853438000,-277.99972557,0.00014405,2]
[424412236,1780853438000,-797.25337805,0.000144,5]
[424412238,1780853438000,-360.50757357,0.00014414,2]
[424412243,1780853438000,-500.0,0.00014414,2]
[424412253,1780853438000,-500.0,0.00014414,2]
[424412242,1780853438000,-500.0,0.00014414,2]
[424412239,1780853438000,-322.47447871,0.00014414,2]
[424412241,1780853438000,-500.0,0.00014414,2]
[424412244,1780853438000,-500.0,0.00014414,2]
[424412248,1780853438000,-221.75826509,0.00014414,2]
[424412246,1780853438000,-597.10456354,0.00014414,2]
[424412249,1780853438000,-500.27682562,0.00014414,2]
[424412251,1780853438000,-500.0,0.00014414,2]
[424412250,1780853438000,-500.0,0.00014414,2]
[424412256,1780853438000,-500.0,0.00014414,2]
[424412255,1780853438000,-500.0,0.00014414,2]
[424412254,1780853438000,-500.0,0.00014414,2]
[424412240,1780853438000,-491.12955631,0.00014414,2]
[424412288,1780853438000,-6819.0192,0.0001449,2]
[424412245,1780853438000,-500.0,0.00014414,2]
[424412302,1780853438000,-22494.40645696,0.00014502,2]
[424412345,1780853438000,-22494.40645689,0.00014635,2]
[424412404,1780853438000,-500.0,0.00014799,2]
[424412357,1780853438000,-2000.0,0.000147,2]
[424412360,1780853438000,-200.0,0.000147,5]
[424412363,1780853438000,-350.0,0.00014712,3]
[424412373,1780853438000,-407.0,0.00014751,2]
[424412375,1780853438000,-6378.04080981,0.00014767,2]
[424412377,1780853438000,-22494.40645689,0.00014767,2]
[424412381,1780853438000,-151.0,0.00014797,2]
[424412379,1780853438000,-350.0,0.0001477,2]
[424412365,1780853438000,-6378.04080981,0.00014722,2]
[424412342,1780853438000,-4818.3471272,0.00014634,2]
[424412369,1780853438000,-350.0,0.00014731,4]
[424412386,1780853438000,-500.0,0.00014799,2]
[424412371,1780853438000,-150.0,0.00014737,2]
[424412388,1780853438000,-500.0,0.00014799,2]
[424412383,1780853438000,-500.0,0.00014799,2]
[424412394,1780853438000,-500.0,0.00014799,2]
[424412392,1780853438000,-500.0,0.00014799,2]
[424412396,1780853438000,-500.0,0.00014799,2]
[424412398,1780853438000,-500.0,0.00014799,2]
[424412400,1780853438000,-500.0,0.00014799,2]
[424412402,1780853438000,-500.0,0.00014799,2]
[424412296,1780853438000,-6378.04080987,0.000145,2]
[424412367,1780853438000,-22494.40645689,0.00014723,2]
[424412340,1780853438000,-6636.7126888,0.00014634,2]
[424412390,1780853438000,-500.0,0.00014799,2]
[424412336,1780853438000,-6378.04080981,0.00014633,2]
[424412353,1780853438000,-500.0,0.00014678,2]
[424412300,1780853438000,-1400.0,0.000145,5]
[424412306,1780853438000,-6378.04080981,0.00014544,2]
[424412290,1780853438000,-150.0,0.00014499,2]
[424412292,1780853438000,-150.0,0.000145,2]
[424412304,1780853438000,-327.30383766,0.00014515,2]
[424412308,1780853438000,-22494.40645689,0.00014546,2]
[424412312,1780853438000,-22494.40645689,0.0001459,2]
[424412316,1780853438000,-500.0,0.00014599,2]
[424412310,1780853438000,-6378.04080981,0.00014589,2]
[424412314,1780853438000,-1070.37471907,0.00014599,5]
[424412318,1780853438000,-500.0,0.00014599,2]
[424412294,1780853438000,-2500.0,0.000145,2]
[424412322,1780853438000,-500.0,0.00014599,2]
[424412320,1780853438000,-500.0,0.00014599,2]
[424412355,1780853438000,-22494.40645689,0.00014679,2]
[424412338,1780853438000,-25947.2987427,0.00014634,2]
[424412349,1780853438000,-10265.21082506,0.00014647,2]
[424412347,1780853438000,-4920.73950072,0.00014647,2]
[424412351,1780853438000,-6378.04080981,0.00014678,2]
[424412332,1780853438000,-200.0,0.000146,5]
[424412328,1780853438000,-661.0,0.000146,5]
[424412334,1780853438000,-748.06,0.00014603,2]
[424412326,1780853438000,-500.0,0.00014599,2]
[424412330,1780853438000,-1500.0,0.000146,2]
[424412324,1780853438000,-500.0,0.00014599,2]
[424412450,1780853439000,-200.0,0.000149,5]
[424412475,1780853439000,-277.99972557,0.0001499,2]
[424412467,1780853439000,-207.55787824,0.00014952,2]
[424412469,1780853439000,-150.00000012,0.00014986,2]
[424412465,1780853439000,-748.06,0.00014942,2]
[424412473,1780853439000,-277.99972557,0.0001499,2]
[424412481,1780853439000,-500.0,0.00014998,2]
[424412471,1780853439000,-256.65450087,0.00014986,2]
[424412479,1780853439000,-151.0,0.00014997,2]
[424412452,1780853439000,-22494.40645689,0.000149,2]
[424412517,1780853439000,-500.0,0.00014999,2]
[424412477,1780853439000,-151.0,0.00014997,2]
[424412506,1780853439000,-500.0,0.00014999,2]
[424412508,1780853439000,-211.38332657,0.00014999,2]
[424412510,1780853439000,-500.0,0.00014999,8]
[424412516,1780853439000,-500.0,0.00014999,2]
[424412511,1780853439000,-1500.0,0.00014999,2]
[424412518,1780853439000,-500.0,0.00014999,2]
[424412513,1780853439000,-500.0,0.00014999,2]
[424412519,1780853439000,-500.0,0.00014999,2]
[424412454,1780853439000,-6378.04080981,0.000149,2]
[424412512,1780853439000,-500.0,0.00014999,2]
[424412483,1780853439000,-451.14,0.00014999,2]
[424412448,1780853439000,-2474.4653,0.000149,2]
[424412437,1780853439000,-22494.40645689,0.00014812,2]
[424412460,1780853439000,-7343.3589839,0.00014917,2]
[424412515,1780853439000,-500.0,0.00014999,2]
[424412408,1780853439000,-500.0,0.00014799,2]
[424412410,1780853439000,-500.0,0.00014799,2]
[424412406,1780853439000,-500.0,0.00014799,2]
[424412412,1780853439000,-500.0,0.00014799,2]
[424412414,1780853439000,-500.0,0.00014799,2]
[424412416,1780853439000,-500.0,0.00014799,2]
[424412418,1780853439000,-500.0,0.00014799,3]
[424412429,1780853439000,-1291.0,0.000148,5]
[424412435,1780853439000,-6378.04080981,0.00014811,2]
[424412433,1780853439000,-200.0,0.000148,5]
[424412431,1780853439000,-835.0,0.000148,5]
[424412424,1780853439000,-500.0,0.00014799,6]
[424412440,1780853439000,-350.0,0.00014815,4]
[424412420,1780853439000,-500.0,0.00014799,4]
[424412422,1780853439000,-500.0,0.00014799,5]
[424412426,1780853439000,-500.0,0.00014799,7]
[424412438,1780853439000,-404.0,0.00014815,2]
[424412442,1780853439000,-6378.04080981,0.00014856,2]
[424412456,1780853439000,-7384.45771626,0.000149,2]
[424412444,1780853439000,-22494.40645689,0.00014856,2]
[424412446,1780853439000,-200.0,0.0001488,2]
[424412458,1780853439000,-225.5795948,0.000149,2]
[424412463,1780853439000,-6951.4995479,0.00014925,2]
[424412514,1780853439000,-500.0,0.00014999,2]
[424412533,1780853439000,-500.0,0.00014999,2]
[424412531,1780853439000,-500.0,0.00014999,2]
[424412555,1780853439000,-500.0,0.00014999,2]
[424412547,1780853439000,-500.0,0.00014999,2]
[424412550,1780853439000,-500.0,0.00014999,2]
[424412552,1780853439000,-500.0,0.00014999,2]
[424412549,1780853439000,-500.0,0.00014999,2]
[424412554,1780853439000,-500.0,0.00014999,2]
[424412557,1780853439000,-500.0,0.00014999,2]
[424412556,1780853439000,-500.0,0.00014999,2]
[424412559,1780853439000,-500.0,0.00014999,2]
[424412564,1780853439000,-500.0,0.00014999,2]
[424412560,1780853439000,-500.0,0.00014999,2]
[424412528,1780853439000,-500.0,0.00014999,2]
[424412558,1780853439000,-500.0,0.00014999,2]
[424412561,1780853439000,-500.0,0.00014999,2]
[424412565,1780853439000,-500.0,0.00014999,2]
[424412563,1780853439000,-500.0,0.00014999,2]
[424412562,1780853439000,-500.0,0.00014999,2]
[424412567,1780853439000,-500.0,0.00014999,2]
[424412569,1780853439000,-500.0,0.00014999,2]
[424412570,1780853439000,-500.0,0.00014999,2]
[424412572,1780853439000,-500.0,0.00014999,2]
[424412571,1780853439000,-500.0,0.00014999,2]
[424412568,1780853439000,-500.0,0.00014999,2]
[424412553,1780853439000,-500.0,0.00014999,2]
[424412548,1780853439000,-500.0,0.00014999,2]
[424412566,1780853439000,-500.0,0.00014999,2]
[424412546,1780853439000,-500.0,0.00014999,2]
[424412551,1780853439000,-500.0,0.00014999,2]
[424412526,1780853439000,-500.0,0.00014999,2]
[424412525,1780853439000,-500.0,0.00014999,2]
[424412524,1780853439000,-500.0,0.00014999,2]
[424412522,1780853439000,-500.0,0.00014999,2]
[424412520,1780853439000,-500.0,0.00014999,2]
[424412530,1780853439000,-500.0,0.00014999,2]
[424412523,1780853439000,-500.0,0.00014999,2]
[424412521,1780853439000,-500.0,0.00014999,2]
[424412529,1780853439000,-500.0,0.00014999,2]
[424412532,1780853439000,-500.0,0.00014999,2]
[424412527,1780853439000,-500.0,0.00014999,2]
[424412534,1780853439000,-500.0,0.00014999,2]
[424412545,1780853439000,-500.0,0.00014999,2]
[424412535,1780853439000,-500.0,0.00014999,2]
[424412544,1780853439000,-500.0,0.00014999,2]
[424412543,1780853439000,-500.0,0.00014999,2]
[424412539,1780853439000,-500.0,0.00014999,2]
[424412538,1780853439000,-500.0,0.00014999,2]
[424412542,1780853439000,-500.0,0.00014999,2]
[424412541,1780853439000,-500.0,0.00014999,2]
[424412536,1780853439000,-500.0,0.00014999,2]
[424412537,1780853439000,-500.0,0.00014999,2]
[424412540,1780853439000,-500.0,0.00014999,2]
[424412591,1780853440000,-500.0,0.00014999,2]
[424412592,1780853440000,-500.0,0.00014999,2]
[424412588,1780853440000,-500.0,0.00014999,2]
[424412594,1780853440000,-500.0,0.00014999,2]
[424412589,1780853440000,-500.0,0.00014999,2]
[424412593,1780853440000,-500.0,0.00014999,2]
[424412597,1780853440000,-500.0,0.00014999,2]
[424412596,1780853440000,-500.0,0.00014999,2]
[424412601,1780853440000,-500.0,0.00014999,2]
[424412600,1780853440000,-500.0,0.00014999,2]
[424412582,1780853440000,-500.0,0.00014999,2]
[424412599,1780853440000,-500.0,0.00014999,2]
[424412595,1780853440000,-500.0,0.00014999,2]
[424412585,1780853440000,-500.0,0.00014999,2]
[424412578,1780853440000,-500.0,0.00014999,2]
[424412586,1780853440000,-500.0,0.00014999,2]
[424412587,1780853440000,-500.0,0.00014999,2]
[424412580,1780853440000,-500.0,0.00014999,2]
[424412583,1780853440000,-500.0,0.00014999,2]
[424412590,1780853440000,-500.0,0.00014999,2]
[424412584,1780853440000,-500.0,0.00014999,2]
[424412579,1780853440000,-500.0,0.00014999,2]
[424412575,1780853440000,-500.0,0.00014999,2]
[424412576,1780853440000,-500.0,0.00014999,2]
[424412577,1780853440000,-500.0,0.00014999,2]
[424412574,1780853440000,-500.0,0.00014999,2]
[424412573,1780853440000,-500.0,0.00014999,2]
[424412598,1780853440000,-500.0,0.00014999,2]
[424412581,1780853440000,-500.0,0.00014999,2]
[424412602,1780853440000,-500.0,0.00014999,2]
[424412619,1780853440000,-1226.33,0.00015,2]
[424412605,1780853440000,-666.0,0.00014999,2]
[424412606,1780853440000,-300.0,0.00014999,2]
[424412634,1780853440000,-11031730.42670356,0.00015,2]
[424412631,1780853440000,-213.0,0.00015,2]
[424412633,1780853440000,-357.5390969,0.00015,2]
[424412628,1780853440000,-1356.98,0.00015,2]
[424412626,1780853440000,-1733.58,0.00015,2]
[424412630,1780853440000,-150.0,0.00015,2]
[424412629,1780853440000,-1225.97748939,0.00015,2]
[424412627,1780853440000,-151.0,0.00015,2]
[424412632,1780853440000,-302.46,0.00015,2]
[424412625,1780853440000,-889.29,0.00015,2]
[424412623,1780853440000,-934.3,0.00015,2]
[424412621,1780853440000,-2000.0,0.00015,2]
[424412622,1780853440000,-2000.0,0.00015,2]
[424412624,1780853440000,-2000.0,0.00015,2]
[424412613,1780853440000,-1554417.92004437,0.00015,2]
[424412617,1780853440000,-1893.89,0.00015,2]
[424412618,1780853440000,-150.0,0.00015,2]
[424412614,1780853440000,-2000.0,0.00015,2]
[424412615,1780853440000,-2000.0,0.00015,2]
[424412616,1780853440000,-905.34,0.00015,2]
[424412611,1780853440000,-2080.83702791,0.00015,2]
[424412609,1780853440000,-666.0,0.00014999,2]
[424412620,1780853440000,-2000.0,0.00015,2]
[424412610,1780853440000,-904131.24637456,0.00015,2]
[424412612,1780853440000,-8099.62175,0.00015,2]
[424412608,1780853440000,-300.0,0.00014999,2]
[424412603,1780853440000,-500.0,0.00014999,2]
[424412607,1780853440000,-666.0,0.00014999,2]
[424412604,1780853440000,-300.0,0.00014999,2]
[424412638,1780853441000,-2004.20318049,0.00015,2]
[424412636,1780853441000,-1151.36867466,0.00015,2]
[424412637,1780853441000,-353.89,0.00015,2]
[424412635,1780853441000,-1407.35608881,0.00015,2]
[424412641,1780853441000,-916.55417878,0.00015,2]
[424412640,1780853441000,-1348.3235727,0.00015,2]
[424412642,1780853441000,-528.84460847,0.00015,2]
[424412639,1780853441000,-1187.75083997,0.00015,2]
[424412643,1780853442000,-580.84800508,0.00015,2]
[424412648,1780853443000,-204.62376821,0.00015,2]
[424412653,1780853446000,-2347.35,0.00015,2]
[424412652,1780853446000,-11133.88217628,0.00015,2]
[424412651,1780853446000,-300.0,0.00015,2]
[424412650,1780853446000,-5694.93795012,0.00015,2]
[424412649,1780853446000,-453.36204988,0.00014212,2]
[424412678,1780854622000,1006.472477,0.000301,120]
[424412682,1780854632000,-672.09,0.0001221,2]
[424412685,1780854632000,-4874.38474195,0.0001221,2]
[424412684,1780854632000,-2060.33272966,0.0001221,2]
[424412686,1780854632000,-393.51233074,0.0001221,2]
[424412683,1780854632000,-48287.86431377,0.0001221,2]
[424412688,1780854632000,-607.56498033,0.0001221,2]